bitfinex-derivatives/quotes_BTCF0:USTF0_20250527
["timestamp","ask_amount","ask_price","bid_price","bid_amount"]
[1748380589579,2.8055711,109660.0,109650.0,0.27738514]
[1748380593175,2.61803681,109660.0,109650.0,0.27738514]
[1748380593478,2.57547681,109660.0,109650.0,0.27738514]
[1748380595088,2.93627681,109660.0,109650.0,0.27738814]
[1748380595880,2.93627681,109660.0,109650.0,0.34713073]
[1748380597882,2.93623681,109660.0,109650.0,0.34713073]
[1748380599778,2.93623681,109660.0,109650.0,0.27738814]
[1748380600579,1.90203681,109660.0,109650.0,0.27738814]
[1748380601077,1.90203681,109660.0,109650.0,0.27739345]
[1748380601787,1.54123681,109660.0,109650.0,0.27739345]
[1748380601977,1.90203681,109660.0,109650.0,0.27739345]
[1748380602884,1.10472442,109660.0,109650.0,0.45970795]
[1748380603183,0.80072162,109660.0,109650.0,0.45970795]
[1748380603385,0.6783751,109660.0,109650.0,1.01461262]
[1748380603585,0.5222979,109660.0,109650.0,1.02789833]
[1748380603884,1.0433379,109660.0,109650.0,1.02777833]
[1748380604086,0.43928,109660.0,109650.0,1.02777833]
[1748380604284,0.6215779,109660.0,109650.0,1.02777833]
[1748380604491,0.6215779,109660.0,109650.0,1.27777833]
[1748380604792,0.6215779,109660.0,109650.0,1.35889683]
[1748380604979,0.6215779,109660.0,109650.0,1.45009283]
[1748380605179,0.6215779,109660.0,109650.0,1.50035385]
[1748380605882,0.6215779,109660.0,109650.0,1.56273912]
[1748380606281,0.6215779,109660.0,109650.0,1.53909489]
[1748380607188,0.6215779,109660.0,109650.0,1.20797639]
[1748380607583,0.6215779,109660.0,109650.0,0.92829489]
[1748380607779,0.6215779,109660.0,109650.0,1.64989489]
[1748380607987,0.6215779,109660.0,109650.0,1.70012966]
[1748380608489,0.5222979,109660.0,109650.0,1.70012966]
[1748380608983,0.5222979,109660.0,109650.0,1.56877639]
[1748380613597,0.5222979,109660.0,109650.0,1.47758039]
[1748380617197,0.5222979,109660.0,109650.0,1.43772734]
[1748380617391,0.5222979,109660.0,109650.0,0.71612734]
[1748380617578,0.5222979,109660.0,109650.0,1.43772734]
[1748380618791,0.5222979,109660.0,109650.0,1.47758039]
[1748380619995,0.5222979,109660.0,109650.0,0.75598039]
[1748380620197,0.5222979,109660.0,109650.0,1.47758039]
[1748380621396,0.5222979,109660.0,109650.0,0.75598039]
[1748380621597,0.5222979,109660.0,109650.0,1.47758039]
[1748380621985,0.5222979,109660.0,109650.0,1.48758039]
[1748380625985,0.5222979,109660.0,109650.0,1.42512692]
[1748380628994,0.5222979,109660.0,109650.0,0.70352692]
[1748380629194,0.5222979,109660.0,109650.0,1.50624542]
[1748380629703,0.5222979,109660.0,109650.0,1.42512692]
[1748380630205,0.5222979,109660.0,109650.0,1.47962863]
[1748380630998,0.5222979,109660.0,109650.0,1.52987263]
[1748380632006,0.5222979,109660.0,109650.0,1.44875413]
[1748380632202,0.5222979,109660.0,109650.0,1.49017598]
[1748380633104,0.5222979,109660.0,109650.0,1.43993198]
[1748380633302,0.5222979,109660.0,109650.0,1.54338982]
[1748380633806,0.5622979,109660.0,109650.0,1.54338982]
[1748380637206,0.1922979,109660.0,109650.0,1.53338982]
[1748380637403,0.5422979,109660.0,109650.0,1.49307483]
[1748380637750,0.5903979,109660.0,109650.0,1.54337602]
[1748380638211,0.5903979,109660.0,109650.0,1.64596378]
[1748380638501,0.5903979,109660.0,109650.0,1.23508319]
[1748380638502,0.96533008,109660.0,109650.0,1.23508319]
[1748380638708,1.10279846,109660.0,109650.0,0.49784297]
[1748380638912,1.10279846,109660.0,109650.0,0.42201972]
[1748380639110,1.10279846,109660.0,109650.0,0.17091472]
[1748380639294,1.10279846,109660.0,109650.0,0.35322912]
[1748380639610,1.10279846,109660.0,109650.0,0.35310912]
[1748380640102,1.10279846,109660.0,109650.0,0.3131448]
[1748380640408,1.10279846,109660.0,109650.0,0.3820554]
[1748380643311,1.10279846,109660.0,109650.0,0.40202794]
[1748380643714,1.10279846,109660.0,109650.0,0.3820554]
[1748380644313,1.10279846,109660.0,109650.0,0.40202688]
[1748380646011,1.1027637,109660.0,109650.0,0.40202519]
[1748380648999,1.1027637,109660.0,109650.0,0.45082519]
[1748380649503,1.1027637,109660.0,109650.0,0.30159109]
[1748380649815,1.1027637,109660.0,109650.0,0.13768039]
[1748380650007,1.1027637,109660.0,109650.0,0.31999479]
[1748380650809,1.1027637,109660.0,109650.0,0.02008979]
[1748380651404,1.1027637,109660.0,109650.0,0.20240419]
[1748380651605,1.1027637,109660.0,109650.0,0.24760419]
[1748380652309,1.1027637,109660.0,109650.0,0.13495067]
[1748380652613,1.1027637,109660.0,109650.0,0.08975067]
[1748380652811,1.1027637,109660.0,109650.0,0.08963146]
[1748380653119,1.1027637,109660.0,109650.0,0.08975146]
[1748380653315,1.1027637,109660.0,109650.0,0.13875146]
[1748380653715,0.36978039,109650.0,109640.0,1.05981053]
[1748380653919,1.38364039,109650.0,109640.0,1.05981053]
[1748380655117,1.39264039,109650.0,109640.0,1.06181053]
[1748380656422,1.39264039,109650.0,109640.0,0.87434444]
[1748380656718,1.39264039,109650.0,109640.0,1.06181053]
[1748380656911,1.39264039,109650.0,109640.0,1.10801053]
[1748380658422,1.34494039,109650.0,109640.0,1.10801053]
[1748380658916,1.1090743,109650.0,109640.0,1.29547662]
[1748380659112,1.1090743,109650.0,109640.0,1.10801053]
[1748380659314,1.1090743,109650.0,109640.0,1.23864503]
[1748380661222,1.1090743,109650.0,109640.0,1.23864497]
[1748380664032,0.4064,109650.0,109640.0,1.35732046]
[1748380664208,0.359,109650.0,109640.0,1.43611106]
[1748380664413,0.169,109650.0,109640.0,1.43611106]
[1748380664613,0.4001144,109650.0,109640.0,1.43611106]
[1748380665717,0.4001144,109650.0,109640.0,1.30547662]
[1748380668217,0.4001144,109650.0,109640.0,1.43617035]
[1748380670718,0.4001144,109650.0,109640.0,1.38675152]
[1748380671425,0.4001144,109650.0,109640.0,1.30547662]
[1748380671637,0.4001144,109650.0,109640.0,1.38675152]
[1748380672931,0.4001144,109650.0,109640.0,1.0339242]
[1748380673132,0.4001144,109650.0,109640.0,1.3947242]
[1748380674130,0.4001144,109650.0,109640.0,1.44414958]
[1748380675432,0.4001144,109650.0,109640.0,1.54675157]
[1748380676137,0.4001144,109650.0,109640.0,1.46547667]
[1748380679544,0.4001144,109650.0,109640.0,1.46548712]
[1748380680538,0.4001144,109650.0,109640.0,1.55819398]
[1748380681144,0.6201144,109650.0,109640.0,1.1732618]
[1748380681340,0.80758049,109650.0,109640.0,1.22640465]
[1748380681645,0.90748049,109650.0,109640.0,1.1276791]
[1748380681832,0.90748049,109650.0,109640.0,1.1277991]
[1748380682235,0.90748049,109650.0,109640.0,1.12780251]
[1748380683440,0.95004937,109650.0,109640.0,1.01387501]
[1748380684537,0.95004937,109650.0,109640.0,0.92107501]
[1748380685845,0.95004937,109650.0,109640.0,0.97097501]
[1748380686447,0.95003156,109650.0,109640.0,0.97097331]
[1748380686848,0.95003156,109650.0,109640.0,1.02207331]
[1748380687037,0.95003156,109650.0,109640.0,1.02207307]
[1748380688141,0.76256547,109650.0,109640.0,1.02207307]
[1748380688348,0.95003156,109650.0,109640.0,1.02207307]
[1748380688546,0.95003156,109650.0,109640.0,1.20953916]
[1748380688743,0.95003156,109650.0,109640.0,1.07872051]
[1748380690148,0.95003156,109650.0,109640.0,0.89125442]
[1748380694455,0.95003156,109650.0,109640.0,1.07872051]
[1748380695144,0.95002695,109650.0,109640.0,1.07872051]
[1748380697352,0.95002695,109650.0,109640.0,0.98755801]
[1748380697741,0.95002695,109650.0,109640.0,0.80009192]
[1748380700255,0.95002695,109650.0,109640.0,0.93113532]
[1748380700458,0.95002695,109650.0,109640.0,1.03374187]
[1748380700853,0.95002695,109650.0,109640.0,0.93113532]
[1748380701054,0.95002695,109650.0,109640.0,0.80009192]
[1748380703560,0.95002695,109650.0,109640.0,0.98755801]
[1748380703755,0.9500371,109650.0,109640.0,0.98755801]
[1748380705066,0.9500371,109650.0,109640.0,0.80524101]
[1748380705264,0.9500371,109650.0,109640.0,0.98757211]
[1748380706159,0.9500371,109650.0,109640.0,0.62677211]
[1748380706360,0.9500371,109650.0,109640.0,0.98757211]
[1748380706565,0.9500371,109650.0,109640.0,0.80010602]
[1748380707569,1.3709571,109650.0,109640.0,0.98757211]
[1748380707966,1.32185961,109650.0,109640.0,0.98757211]
[1748380708669,1.32185961,109650.0,109640.0,0.91878151]
[1748380708966,1.32185961,109650.0,109640.0,0.98757211]
[1748380709375,1.27105961,109650.0,109640.0,0.98757211]
[1748380710069,1.08359352,109650.0,109640.0,0.98757211]
[1748380710277,1.27105961,109650.0,109640.0,0.98757211]
[1748380711176,1.27105961,109650.0,109640.0,0.91878151]
[1748380711377,1.27105961,109650.0,109640.0,0.98757211]
[1748380712371,1.27106212,109650.0,109640.0,0.98757211]
[1748380714277,1.27106212,109650.0,109640.0,0.62677211]
[1748380714583,1.27106212,109650.0,109640.0,0.98757211]
[1748380716676,1.27106209,109650.0,109640.0,0.98757211]
[1748380721385,1.27106336,109650.0,109640.0,0.80010602]
[1748380721688,1.27106336,109650.0,109640.0,0.98757211]
[1748380722487,1.27106336,109650.0,109640.0,1.11862477]
[1748380723688,1.27106336,109650.0,109640.0,0.98757211]
[1748380724277,1.36994336,109650.0,109640.0,0.98757211]
[1748380724990,1.36994336,109650.0,109640.0,0.62677211]
[1748380725192,1.36994336,109650.0,109640.0,0.98757211]
[1748380725393,1.36994336,109650.0,109640.0,1.06895346]
[1748380726288,1.36994336,109650.0,109640.0,0.98757211]
[1748380726591,1.36994336,109650.0,109640.0,1.06895346]
[1748380726992,1.36994336,109650.0,109640.0,0.93142772]
[1748380728500,1.36994336,109650.0,109640.0,0.88148737]
[1748380728797,1.36994336,109650.0,109640.0,0.93143099]
[1748380730102,1.36994336,109650.0,109640.0,0.57063099]
[1748380730295,1.36994336,109650.0,109640.0,0.93143099]
[1748380731394,1.36994336,109650.0,109640.0,1.11889708]
[1748380732196,1.36994336,109650.0,109640.0,1.06895346]
[1748380732402,1.18247727,109650.0,109640.0,0.98757211]
[1748380732600,1.36994336,109650.0,109640.0,0.98757211]
[1748380733490,1.36994336,109650.0,109640.0,1.11907953]
[1748380733987,1.36994336,109650.0,109640.0,1.06895346]
[1748380734192,1.36994025,109650.0,109640.0,1.11907953]
[1748380735602,1.36994025,109650.0,109640.0,1.06895346]
[1748380736299,1.36994025,109650.0,109640.0,1.06883346]
[1748380736899,1.36994025,109650.0,109640.0,0.88136737]
[1748380737195,1.36994025,109650.0,109640.0,1.06883346]
[1748380737395,1.36994025,109650.0,109640.0,1.11895951]
[1748380737794,1.36994025,109650.0,109640.0,0.79998602]
[1748380737995,1.36994025,109650.0,109640.0,0.98745211]
[1748380738396,1.36993613,109650.0,109640.0,0.98745211]
[1748380740004,1.36993613,109650.0,109640.0,0.79998602]
[1748380740304,1.36993613,109650.0,109640.0,0.43918602]
[1748380740504,1.36993613,109650.0,109640.0,0.79998602]
[1748380740815,1.23317004,109650.0,109640.0,0.79998602]
[1748380741105,1.47293613,109650.0,109640.0,0.79998602]
[1748380741308,1.4729354,109650.0,109640.0,0.79998602]
[1748380743196,1.4729354,109650.0,109640.0,0.43918602]
[1748380743402,1.4729354,109650.0,109640.0,0.79998602]
[1748380745311,1.47293537,109650.0,109640.0,0.79998602]
[1748380747906,1.47293537,109650.0,109640.0,0.93189722]
[1748380749209,1.47293537,109650.0,109640.0,0.64856612]
[1748380749419,2.1203389,109650.0,109640.0,0.0918987]
[1748380749607,2.0635417,109650.0,109640.0,0.02211955]
[1748380749913,2.0635417,109650.0,109640.0,0.02199955]
[1748380750111,2.0635417,109650.0,109640.0,0.02211955]
[1748380750331,2.0635417,109650.0,109640.0,0.00212]
[1748380751313,2.12021133,109650.0,109640.0,0.00212]
[1748380752404,2.12021133,109650.0,109640.0,0.07190034]
[1748380753913,2.0635417,109650.0,109640.0,0.07178034]
[1748380754207,2.0635417,109650.0,109640.0,0.07190034]
[1748380756017,1.7027417,109650.0,109640.0,0.07190034]
[1748380756215,2.0635417,109650.0,109640.0,0.07190034]
[1748380756414,2.12015248,109650.0,109640.0,0.07190034]
[1748380757717,0.1823476,109630.0,109620.0,0.521765]
[1748380757908,1.21913369,109630.0,109620.0,0.521765]
[1748380758107,1.32333369,109630.0,109620.0,0.521765]
[1748380758307,1.32333369,109630.0,109620.0,0.5217509]
[1748380760204,1.32533369,109630.0,109620.0,0.5217509]
[1748380760705,1.32733369,109630.0,109620.0,0.5217509]
[1748380760917,1.32733369,109630.0,109620.0,0.6288509]
[1748380762315,1.32733369,109630.0,109620.0,0.2680509]
[1748380762513,1.0866076,109630.0,109620.0,0.95882099]
[1748380762713,1.27407369,109630.0,109620.0,0.97876882]
[1748380764019,1.27407369,109630.0,109620.0,0.79130273]
[1748380766023,1.28322171,109630.0,109620.0,0.79130273]
[1748380766326,1.28322171,109630.0,109620.0,0.60893843]
[1748380766819,1.28322171,109630.0,109620.0,0.60893706]
[1748380771118,1.28322171,109630.0,109620.0,0.5889906]
[1748380771319,1.28322171,109630.0,109620.0,0.60893971]
[1748380772836,1.28322171,109630.0,109620.0,0.24813971]
[1748380773035,1.28322171,109630.0,109620.0,0.60893971]
[1748380773322,1.09571562,109630.0,109620.0,0.79130401]
[1748380773521,1.28318171,109630.0,109620.0,0.79130401]
[1748380775521,1.28318171,109630.0,109620.0,0.7913162]
[1748380777028,1.33538171,109630.0,109620.0,0.7913162]
[1748380778530,1.33538171,109630.0,109620.0,0.8112548]
[1748380779424,1.37784563,109630.0,109620.0,0.94270803]
[1748380780620,1.37784563,109630.0,109620.0,0.76034373]
[1748380781231,0.85852563,109630.0,109620.0,0.94270793]
[1748380781529,1.33534171,109630.0,109620.0,0.94271434]
[1748380781833,1.37787773,109630.0,109620.0,0.89263605]
[1748380782022,1.33534171,109630.0,109620.0,0.94271434]
[1748380782222,1.33534171,109630.0,109620.0,0.89263605]
[1748380782520,1.33534171,109630.0,109620.0,0.85273615]
[1748380782935,1.33534171,109630.0,109620.0,0.90281911]
[1748380783430,1.33534171,109630.0,109620.0,0.85273615]
[1748380783830,1.37788659,109630.0,109620.0,0.94282287]
[1748380784029,1.37788659,109630.0,109620.0,0.89273495]
[1748380784727,1.37788756,109630.0,109620.0,0.89273495]
[1748380786334,1.42988756,109630.0,109620.0,0.89273495]
[1748380786533,1.42988826,109630.0,109620.0,0.8113536]
[1748380787938,1.42988826,109630.0,109620.0,0.83801938]
[1748380789531,1.42988826,109630.0,109620.0,0.54855518]
[1748380789730,1.48661477,109630.0,109620.0,0.11545663]
[1748380789924,1.48661477,109630.0,109620.0,0.11557663]
[1748380791342,1.48660501,109630.0,109620.0,0.11557277]
[1748380791546,1.48660501,109630.0,109620.0,0.16857277]
[1748380797643,1.48660501,109630.0,109620.0,0.23831395]
[1748380802047,1.48660501,109630.0,109620.0,0.16857277]
[1748380802638,1.44406822,109630.0,109620.0,0.14857638]
[1748380802862,1.48658942,109630.0,109620.0,0.16856349]
[1748380803156,1.48658942,109630.0,109620.0,0.16950917]
[1748380804439,1.48658942,109630.0,109620.0,0.14284339]
[1748380806249,1.48658942,109630.0,109620.0,0.07310711]
[1748380808054,1.84738327,109630.0,109620.0,0.07310711]
[1748380811453,1.80486822,109630.0,109620.0,0.05312]
[1748380811658,1.84738088,109630.0,109620.0,0.0731052]
[1748380815851,1.84736039,109630.0,109620.0,0.07310602]
[1748380816852,1.6598943,109630.0,109620.0,0.07310602]
[1748380817053,1.84736039,109630.0,109620.0,0.07310602]
[1748380817260,1.80486822,109630.0,109620.0,0.07310602]
[1748380817560,1.38430822,109630.0,109620.0,0.07310602]
[1748380817762,1.8471252,109630.0,109620.0,0.07310602]
[1748380818358,1.80462822,109630.0,109620.0,0.07310602]
[1748380820361,1.80462822,109630.0,109620.0,0.07311222]
[1748380821263,1.80462822,109630.0,109620.0,0.14178282]
[1748380821965,1.80462822,109630.0,109620.0,0.26514013]
[1748380822358,1.88971799,109630.0,109620.0,0.26514013]
[1748380823459,1.88771799,109630.0,109620.0,0.26514013]
[1748380823656,1.81062822,109630.0,109620.0,0.26714013]
[1748380824667,1.81062822,109630.0,109620.0,0.26714067]
[1748380825159,1.89571799,109630.0,109620.0,0.26714067]
[1748380827168,1.89571799,109630.0,109620.0,0.14475007]
[1748380827467,2.08318408,109630.0,109620.0,0.14475007]
[1748380828053,1.89571799,109630.0,109620.0,0.14487007]
[1748380828671,0.1823642,109620.0,109610.0,0.04771044]
[1748380828857,1.72144057,109620.0,109610.0,0.02104466]
[1748380829057,1.58377448,109620.0,109610.0,0.05196917]
[1748380829257,1.77124057,109620.0,109610.0,0.05196917]
[1748380829861,1.77424057,109620.0,109610.0,0.05296917]
[1748380830162,1.77724057,109620.0,109610.0,0.05296917]
[1748380830470,1.69223371,109620.0,109610.0,0.05296917]
[1748380831067,1.77724057,109620.0,109610.0,0.05296917]
[1748380831269,1.69223371,109620.0,109610.0,0.05296917]
[1748380831567,1.77724057,109620.0,109610.0,0.05296917]
[1748380833569,1.79083926,109620.0,109610.0,0.05296917]
[1748380837860,2.82555926,109620.0,109610.0,0.05296917]
[1748380843768,2.82555926,109620.0,109610.0,0.05284917]
[1748380844166,2.82555926,109620.0,109610.0,0.05296917]
[1748380851265,2.76888802,109620.0,109610.0,0.05296917]
[1748380852776,2.40808802,109620.0,109610.0,0.05296917]
[1748380852979,2.76888802,109620.0,109610.0,0.05296917]
[1748380854662,2.20648975,109620.0,109610.0,0.05296917]
[1748380854976,2.76888802,109620.0,109610.0,0.05296917]
[1748380856768,2.20648975,109620.0,109610.0,0.05296917]
[1748380856981,2.76888802,109620.0,109610.0,0.05296917]
[1748380858575,2.68388116,109620.0,109610.0,0.05296917]
[1748380859475,2.68388116,109620.0,109610.0,0.05284917]
[1748380859677,2.68388116,109620.0,109610.0,0.05296917]
[1748380863277,2.79733419,109620.0,109610.0,0.05296917]
[1748380863579,2.68388116,109620.0,109610.0,0.05296917]
[1748380864182,2.79733419,109620.0,109610.0,0.05296917]
[1748380866278,2.68388116,109620.0,109610.0,0.05284917]
[1748380866680,2.68388116,109620.0,109610.0,0.05296917]
[1748380868284,2.12148289,109620.0,109610.0,0.05296917]
[1748380868584,2.68388116,109620.0,109610.0,0.05296917]
[1748380871483,2.78228116,109620.0,109610.0,0.05296917]
[1748380872586,2.89573419,109620.0,109610.0,0.05296917]
[1748380881393,2.7082681,109620.0,109610.0,0.05296917]
[1748380882591,3.1281481,109620.0,109610.0,0.05296917]
[1748380883193,3.01469507,109620.0,109610.0,0.05296917]
[1748380886287,3.01469507,109620.0,109610.0,0.12175977]
[1748380888993,0.1823808,109610.0,109600.0,0.18781323]
[1748380889185,1.30142338,109610.0,109600.0,0.18781323]
[1748380889391,1.48888947,109610.0,109600.0,0.18781323]
[1748380889593,1.48888947,109610.0,109600.0,0.16781128]
[1748380890399,1.49088947,109610.0,109600.0,0.16781128]
[1748380890586,1.49088947,109610.0,109600.0,0.06081128]
[1748380890786,1.49088947,109610.0,109600.0,0.06093128]
[1748380891187,1.49288947,109610.0,109600.0,0.06193128]
[1748380891794,1.49288947,109610.0,109600.0,0.06181128]
[1748380891997,1.11795729,109610.0,109600.0,0.06181128]
[1748380892303,1.49288947,109610.0,109600.0,0.11563128]
[1748380893809,1.11795729,109610.0,109600.0,0.11563128]
[1748380894105,1.49288947,109610.0,109600.0,0.11563128]
[1748380894900,1.11795729,109610.0,109600.0,0.11563128]
[1748380895101,1.49288947,109610.0,109600.0,0.11563128]
[1748380896201,1.49288947,109610.0,109600.0,0.16543128]
[1748380897306,1.11795729,109610.0,109600.0,0.16543128]
[1748380897503,1.49288947,109610.0,109600.0,0.16543128]
[1748380897703,1.95698947,109610.0,109600.0,0.21543128]
[1748380898895,1.76952338,109610.0,109600.0,0.21543128]
[1748380899096,1.95698947,109610.0,109600.0,0.21543128]
[1748380899302,2.00878947,109610.0,109600.0,0.21543128]
[1748380902608,2.00878947,109610.0,109600.0,0.16563128]
[1748380903808,2.00878947,109610.0,109600.0,0.21893128]
[1748380904308,1.64798947,109610.0,109600.0,0.21893128]
[1748380904507,2.36958947,109610.0,109600.0,0.21893128]
[1748380908511,1.99465729,109610.0,109600.0,0.21893128]
[1748380908712,2.36958947,109610.0,109600.0,0.21893128]
[1748380909810,2.36958947,109610.0,109600.0,0.11563128]
[1748380910417,2.36958947,109610.0,109600.0,0.22333128]
[1748380911814,2.36958947,109610.0,109600.0,0.11551128]
[1748380912214,2.36958947,109610.0,109600.0,0.11563128]
[1748380912709,2.39796601,109610.0,109600.0,0.11563128]
[1748380916518,2.39796601,109610.0,109600.0,0.16943128]
[1748380919424,2.39796601,109610.0,109600.0,0.06193128]
[1748380919725,2.40896601,109610.0,109600.0,0.06293128]
[1748380928719,2.03403383,109610.0,109600.0,0.06293128]
[1748380929032,2.40868601,109610.0,109600.0,0.06293128]
[1748380934727,1.77751298,109610.0,109600.0,0.06293128]
[1748380934926,2.29507298,109610.0,109600.0,0.06293128]
[1748380935435,1.77751298,109610.0,109600.0,0.06293128]
[1748380935640,2.29507298,109610.0,109600.0,0.06293128]
[1748380936337,2.29507298,109610.0,109600.0,0.11603128]
[1748380936536,1.77751298,109610.0,109600.0,0.11603128]
[1748380936734,2.29507298,109610.0,109600.0,0.11603128]
[1748380937139,1.77751298,109610.0,109600.0,0.11603128]
[1748380937439,2.29507298,109610.0,109600.0,0.11603128]
[1748380938136,1.77751298,109610.0,109600.0,0.11603128]
[1748380938336,2.29503298,109610.0,109600.0,0.11603128]
[1748380939241,1.77751298,109610.0,109600.0,0.11603128]
[1748380939442,2.29503298,109610.0,109600.0,0.11603128]
[1748380940431,1.77751298,109610.0,109600.0,0.11603128]
[1748380940637,2.29487298,109610.0,109600.0,0.11603128]
[1748380941234,2.29487298,109610.0,109600.0,0.11591128]
[1748380941726,1.5005408,109610.0,109600.0,0.11591128]
[1748380941932,2.29483298,109610.0,109600.0,0.11591128]
[1748380944743,2.03335383,109610.0,109600.0,0.11591128]
[1748380945044,2.40828601,109610.0,109600.0,0.11591128]
[1748380945244,2.40828601,109610.0,109600.0,0.16601128]
[1748380947937,2.40828601,109610.0,109600.0,0.11591128]
[1748380952247,2.40828601,109610.0,109600.0,0.06281128]
[1748380953055,3.44320601,109610.0,109600.0,0.06281128]
[1748380953247,3.44320601,109610.0,109600.0,0.11241128]
[1748380954057,2.72160601,109610.0,109600.0,0.11241128]
[1748380954257,3.44320601,109610.0,109600.0,0.11241128]
[1748380954555,3.44320601,109610.0,109600.0,0.06281128]
[1748380954946,3.44320601,109610.0,109600.0,0.06293128]
[1748380956856,3.44320601,109610.0,109600.0,0.01913188]
[1748380957056,0.1823971,109600.0,109590.0,0.15800369]
[1748380957256,1.49132479,109600.0,109590.0,0.15800369]
[1748380957754,1.58932479,109600.0,109590.0,0.15800369]
[1748380958158,1.59432479,109600.0,109590.0,0.15900369]
[1748380958951,1.60032479,109600.0,109590.0,0.16000369]
[1748380962254,1.60032479,109600.0,109590.0,0.17275915]
[1748380962563,2.63528479,109600.0,109590.0,0.17275915]
[1748380962953,2.82275088,109600.0,109590.0,0.17276229]
[1748380963152,0.1824138,109590.0,109580.0,0.02000198]
[1748380963356,1.94492083,109590.0,109580.0,0.1021]
[1748380964354,1.94992083,109590.0,109580.0,0.10322]
[1748380965062,1.95492083,109590.0,109580.0,0.10422]
[1748380967265,2.31572083,109590.0,109580.0,0.10422]
[1748380968360,2.31572083,109590.0,109580.0,0.15302]
[1748380973671,2.31572083,109590.0,109580.0,0.05382]
[1748380974070,2.31564083,109590.0,109580.0,0.10282]
[1748380977473,2.31564083,109590.0,109580.0,0.1027]
[1748380977772,2.31564083,109590.0,109580.0,0.10282]
[1748380980473,2.31564083,109590.0,109580.0,0.00212]
[1748380981471,2.31564083,109590.0,109580.0,0.002]
[1748380981677,2.31564083,109590.0,109580.0,0.00212]
[1748380990074,2.23056598,109590.0,109580.0,0.00212]
[1748380992185,2.34401901,109590.0,109580.0,0.00212]
[1748380993383,0.1824303,109580.0,109570.0,0.02272452]
[1748380993683,0.1824303,109580.0,109570.0,0.00273785]
[1748380993684,1.58257518,109580.0,109570.0,0.00273785]
[1748380994572,0.1824467,109570.0,109560.0,0.14957054]
[1748380994773,0.1824467,109570.0,109550.0,0.02757856]
[1748380994774,0.1824634,109560.0,109550.0,0.02757856]
[1748380994967,0.1824801,109550.0,109540.0,0.02849151]
[1748380995179,1.73790474,109550.0,109540.0,0.02849151]
[1748380995375,1.7803892,109550.0,109540.0,0.00182573]
[1748380995974,1.78959391,109550.0,109540.0,0.00194573]
[1748380996580,1.73289536,109550.0,109540.0,0.00294573]
[1748380997282,1.54542927,109550.0,109540.0,0.00294573]
[1748380997478,1.73289536,109550.0,109540.0,0.00294573]
[1748380997780,1.73385677,109550.0,109540.0,0.00394573]
[1748380997976,1.73385677,109550.0,109540.0,0.04254573]
[1748380998874,1.73385677,109550.0,109540.0,0.09164573]
[1748380999580,1.74784167,109550.0,109540.0,0.09164573]
[1748381002083,1.74780208,109550.0,109540.0,0.00394573]
[1748381002283,1.74780208,109550.0,109540.0,0.00382573]
[1748381002675,1.74780208,109550.0,109540.0,0.00394573]
[1748381002989,1.56033599,109550.0,109540.0,0.00394573]
[1748381003293,1.32884208,109550.0,109540.0,0.00394573]
[1748381003480,1.32884208,109550.0,109540.0,0.04254573]
[1748381003676,1.84552208,109550.0,109540.0,0.04254573]
[1748381004877,1.32884208,109550.0,109540.0,0.04254573]
[1748381005079,1.84552208,109550.0,109540.0,0.14494573]
[1748381006278,1.8031158,109550.0,109540.0,0.14494573]
[1748381006590,1.84550349,109550.0,109540.0,0.14494573]
[1748381007187,1.70864459,109550.0,109520.0,0.66125798]
[1748381007389,0.36997839,109530.0,109520.0,0.67125798]
[1748381007589,1.20665839,109530.0,109520.0,0.67125798]
[1748381007890,1.0690923,109530.0,109520.0,0.76256198]
[1748381008091,1.25655839,109530.0,109520.0,0.76256198]
[1748381008292,1.25655839,109530.0,109520.0,0.76356198]
[1748381008485,1.25655839,109530.0,109520.0,0.67225798]
[1748381008690,1.25655839,109530.0,109520.0,0.76356198]
[1748381009390,1.25755839,109530.0,109520.0,0.76756198]
[1748381009593,1.25755839,109530.0,109520.0,0.63062568]
[1748381009791,1.25855839,109530.0,109520.0,0.63162568]
[1748381010490,1.25855839,109530.0,109520.0,0.70062568]
[1748381012293,1.30965839,109530.0,109520.0,0.74062448]
[1748381013492,1.30961839,109530.0,109520.0,0.74062448]
[1748381014184,1.85788448,109530.0,109520.0,0.01685208]
[1748381014384,0.1825476,109510.0,109500.0,0.55975589]
[1748381014595,1.25665369,109510.0,109500.0,0.53277215]
[1748381014893,1.41415369,109510.0,109500.0,0.53289215]
[1748381015293,1.41415369,109510.0,109500.0,0.51987709]
[1748381015489,1.41515369,109510.0,109500.0,0.52187709]
[1748381015689,1.41515369,109510.0,109500.0,0.50337709]
[1748381015987,1.41415369,109510.0,109500.0,0.50137709]
[1748381016288,1.41515369,109510.0,109500.0,0.05432]
[1748381016696,1.41615369,109510.0,109500.0,0.05432]
[1748381016994,1.41615369,109510.0,109500.0,0.00112]
[1748381024404,1.42107218,109510.0,109480.0,0.40262553]
[1748381024599,0.1826307,109460.0,109450.0,0.02156485]
[1748381024901,0.1826641,109440.0,109430.0,0.32166608]
[1748381025194,0.1826641,109440.0,109430.0,0.10789058]
[1748381025195,1.13275147,109440.0,109430.0,0.10789058]
[1748381025388,0.1826806,109430.0,109420.0,0.00198974]
[1748381025588,1.15084669,109430.0,109420.0,0.00198974]
[1748381025796,1.56976669,109430.0,109420.0,0.00198974]
[1748381025996,1.63330799,109430.0,109420.0,0.00198974]
[1748381026305,1.68610799,109430.0,109420.0,0.02048974]
[1748381026487,1.68710799,109430.0,109420.0,0.03368446]
[1748381026685,1.69629079,109430.0,109420.0,0.01518446]
[1748381026887,1.69629079,109430.0,109420.0,0.01502246]
[1748381027094,1.69629079,109430.0,109420.0,0.01514246]
[1748381027399,0.0456862,109400.0,109370.0,0.45507352]
[1748381027593,0.43377149,109380.0,109370.0,0.10473849]
[1748381027790,0.1827975,109360.0,109350.0,0.11396446]
[1748381027992,1.67688489,109360.0,109350.0,0.01]
[1748381028193,2.11068489,109360.0,109350.0,0.05]
[1748381028501,2.11068489,109360.0,109340.0,0.0185]
[1748381028502,0.1828142,109350.0,109340.0,0.0185]
[1748381028696,0.5436142,109350.0,109340.0,0.119948]
[1748381029002,0.55705278,109350.0,109340.0,0.369948]
[1748381029203,0.66765278,109350.0,109340.0,0.5527789]
[1748381029591,0.1828293,109340.0,109330.0,0.01274386]
[1748381029787,0.5436293,109340.0,109330.0,0.08124386]
[1748381029993,0.6136293,109340.0,109330.0,0.12270786]
[1748381030299,0.91523669,109340.0,109330.0,0.01286386]
[1748381030502,1.13523669,109340.0,109330.0,0.01286386]
[1748381030692,1.18603669,109340.0,109330.0,0.01286386]
[1748381030896,1.18603669,109340.0,109330.0,0.01274386]
[1748381031090,1.18603669,109340.0,109330.0,0.01286386]
[1748381031297,1.61179669,109340.0,109330.0,0.01286386]
[1748381031695,1.64118632,109340.0,109330.0,0.01286386]
[1748381031902,1.39017893,109340.0,109330.0,0.01286386]
[1748381032099,0.97141893,109340.0,109330.0,0.01286386]
[1748381032403,1.39943295,109340.0,109330.0,0.14432786]
[1748381032703,0.38832086,109340.0,109330.0,0.82817665]
[1748381032906,0.38832086,109340.0,109330.0,1.05451665]
[1748381033208,0.3748,109340.0,109330.0,0.80350926]
[1748381033590,0.3748,109340.0,109330.0,0.69350926]
[1748381034909,0.3748,109340.0,109330.0,0.69360926]
[1748381038409,0.81535818,109340.0,109330.0,0.14432786]